fUST/lending_fUST_20250311
["ID","MTS","AMOUNT","RATE_DAILY","PERIOD"]
[355826686,1741625441477,-689.54018232,0.00047902,120]
[355826687,1741625441488,-689.54018232,0.00047902,120]
[355826688,1741625441498,-689.54018232,0.00047902,120]
[355826689,1741625441508,-689.54018232,0.00047902,120]
[355826690,1741625441518,-689.54018232,0.00047902,120]
[355826691,1741625441528,-689.54018232,0.00047902,120]
[355826692,1741625441538,-689.54018232,0.00047902,120]
[355826693,1741625441548,-689.54018232,0.00047902,120]
[355826694,1741625441558,-689.54018232,0.00047902,120]
[355826695,1741625441568,-689.54018232,0.00047902,120]
[355826696,1741625441578,-689.54018232,0.00047902,120]
[355826697,1741625441587,-689.54018232,0.00047902,120]
[355826698,1741625441599,-689.54,0.00047902,120]
[355826699,1741625441609,-1608.92709208,0.00047902,120]
[355826700,1741625441619,-1608.92709208,0.00047902,120]
[355826701,1741625441629,-1608.92709208,0.00047902,120]
[355826702,1741625441639,-1608.92709208,0.00047902,120]
[355826703,1741625441649,-1608.92709208,0.00047902,120]
[355826704,1741625441659,-1608.92709208,0.00047902,120]
[355826705,1741625441669,-1608.92709208,0.00047902,120]
[355826706,1741625441679,-1608.92709208,0.00047902,120]
[355826707,1741625441689,-1608.92709208,0.00047902,120]
[355826708,1741625441700,-1608.92709208,0.00047902,120]
[355826709,1741625441710,-1608.92709208,0.00047902,120]
[355826710,1741625441720,-1608.92709208,0.00047902,120]
[355826711,1741625441730,-1608.92709208,0.00047902,120]
[355826712,1741625441740,-1608.92709208,0.00047902,120]
[355826713,1741625441750,-1608.92709208,0.00047902,120]
[355826714,1741625441761,-1608.92709208,0.00047902,120]
[355826715,1741625441772,-1608.92709208,0.00047902,120]
[355826716,1741625441782,-1034.74323617,0.00047906,2]
[355826717,1741625441791,-1608.92709208,0.00047922,120]
[355826718,1741625441801,-830.65493354,0.00047935,4]
[355826719,1741625441811,-1010.88,0.00047945,2]
[355826720,1741625441821,-2000.0,0.00047945,120]
[355826721,1741625441831,-2000.0,0.00047945,120]
[355826722,1741625441841,-2000.0,0.00047945,120]
[355826723,1741625441855,-2000.0,0.00047945,120]
[355826724,1741625441866,-2003.64310293,0.00047945,120]
[355826725,1741625441878,-1073.02873591,0.00047961,2]
[355826726,1741625441888,-830.65493354,0.0004799,4]
[355826727,1741625441899,-10000.0,0.00048,50]
[355826728,1741625441910,-288.08,0.00048,120]
[355826729,1741625441920,-500.0,0.00048,120]
[355826730,1741625441931,-500.0,0.00048,120]
[355826731,1741625441942,-3845.82472886,0.00048,3]
[355826732,1741625441953,-1101.54512701,0.00048,120]
[355826733,1741625441963,-22292.24957418,0.00048,120]
[355826734,1741625441975,-487.0,0.00048,90]
[355826735,1741625441985,-165.0,0.00048,90]
[355826736,1741625441995,-164460.10936877,0.00048002,2]
[355826737,1741625442062,-6360.54714689,0.00048002,2]
[355826738,1741625442074,-500.0,0.00048002,2]
[355826739,1741625442144,-12769.61467299,0.00048002,2]
[355826742,1741625442896,-500.0,0.00046973,10]
[355826743,1741625442906,-151.0,0.00048001,7]
[355826744,1741625442916,-151.0,0.00048001,7]
[355826745,1741625442926,-151.0,0.00048001,7]
[355826746,1741625442936,-151.0,0.00048001,7]
[355826747,1741625442946,-151.0,0.00048001,7]
[355826748,1741625442956,-56080.55120343,0.00048002,2]
[355826773,1741625443932,-154.4,0.0003854,3]
[355826774,1741625443942,-308.8,0.0003991,3]
[355826775,1741625443953,-167.7966245,0.00045678,30]
[355826776,1741625443963,-500.0,0.00046973,10]
[355826777,1741625443974,-495.86793105,0.00046973,10]
[355826778,1741625443984,-3054.5,0.0004699,10]
[355826779,1741625443994,-151.0,0.00048001,7]
[355826780,1741625444004,-151.0,0.00048001,7]
[355826781,1741625444014,-151.0,0.00048001,7]
[355826782,1741625444024,-151.0,0.00048001,7]
[355826783,1741625444034,-2997.63774717,0.00048002,2]
[355826784,1741625444047,-4549.999999,0.00048002,2]
[355826907,1741626632718,-500.0,0.0002801,2]
[355826908,1741626632729,-293.29494697,0.00032128,2]
[355826909,1741626632739,-182.95883987,0.0003579,2]
[355826910,1741626632748,-475.869888,0.0003589,2]
[355826911,1741626632757,-1118.93179049,0.00036524,99]
[355826912,1741626632767,-1118.93179045,0.00039856,119]
[355826913,1741626632776,-1248.0,0.0004,28]
[355826914,1741626632786,-609.44130798,0.00040497,2]
[355826915,1741626632795,-500.0,0.00040497,2]
[355826916,1741626632805,-159.58505571,0.00040497,31]
[355826917,1741626632814,-500.0,0.00040497,2]
[355826918,1741626632823,-24900.0,0.00040498,2]
[355826919,1741626632833,-2612.05567632,0.00040869,28]
[355826921,1741626632843,-475.869888,0.00041211,2]
[355826923,1741626632852,-200.0,0.000415,2]
[355826926,1741626632863,-450.542745,0.0004207,2]
[355826959,1741626632872,-2612.05567631,0.00042296,28]
[355826965,1741626633056,-220.95146982,0.00042823,2]
[355826969,1741626633068,-6.94269113,0.00043187,120]
[355826972,1741626633081,-1111.98909932,0.00043187,120]
[355826975,1741626633092,-893.82669069,0.000436,120]
[355826978,1741626633105,-2001.73872166,0.000436,120]
[355826980,1741626633118,-2104.43458765,0.000436,120]
[355826983,1741626633130,-2612.05567631,0.00043723,28]
[355826985,1741626633141,-150.97925774,0.00045902,2]
[355826987,1741626633152,-1964.19721749,0.00046329,19]
[355826989,1741626633167,-1118.93179045,0.00046519,120]
[355826991,1741626633179,-475.869888,0.00046532,2]
[355826993,1741626633191,-270.94,0.00046564,30]
[355826995,1741626633202,-167.294,0.00046575,77]
[355826997,1741626633213,-500.0,0.00046575,120]
[355826999,1741626633224,-227.74762384,0.00046715,14]
[355827001,1741626633235,-4762.1786151,0.00046762,10]
[355827004,1741626633254,-474.53978801,0.00046762,10]
[355827059,1741626638033,-522.9055,0.000359,7]
[355827060,1741626638090,-542.76933471,0.000359,7]
[355827061,1741626638100,-1065.67483442,0.0003659,7]
[355827062,1741626638111,-1065.67483442,0.00037279,7]
[355827063,1741626638121,-1065.67483442,0.00037969,8]
[355827064,1741626638131,-1065.67483442,0.00038659,8]
[355827065,1741626638140,-1065.67483442,0.00039348,8]
[355827066,1741626638150,-1065.67483442,0.00040038,8]
[355827067,1741626638160,-150.77,0.00040488,2]
[355827068,1741626638171,-150.77,0.00040488,2]
[355827069,1741626638182,-150.77,0.00040488,2]
[355827070,1741626638192,-1065.67483442,0.00040728,8]
[355827071,1741626638202,-150.77,0.00041201,2]
[355827072,1741626638212,-1065.67483442,0.00041417,9]
[355827073,1741626638222,-1065.67483442,0.00042107,9]
[355827074,1741626638232,-150.77,0.00042286,2]
[355827075,1741626638243,-1065.67483442,0.00042797,9]
[355827076,1741626638252,-1065.67483442,0.00043486,9]
[355827077,1741626638408,-1065.67483442,0.00044176,10]
[355827078,1741626638422,-1065.67483442,0.00044866,10]
[355827079,1741626638432,-2612.05567631,0.0004515,28]
[355827080,1741626638442,-1065.67483442,0.00045555,10]
[355827081,1741626638452,-150.77,0.00046319,2]
[355827082,1741626638463,-150.77,0.00046565,2]
[355827083,1741626638473,-6000.0,0.00046575,10]
[355827084,1741626638482,-150.77,0.00046752,2]
[355827085,1741626638492,-150.77,0.00046752,2]
[355827087,1741626638503,-10331.57474258,0.00046762,10]
[355827089,1741626638518,-180.90971587,0.0004679,2]
[355827091,1741626638528,-1280.03158855,0.0004679,2]
[355827094,1741626638538,-5135.93816011,0.000468,30]
[355827096,1741626638550,-267.20196898,0.00046867,31]
[355827098,1741626638560,-325.04700684,0.00046867,120]
[355827099,1741626638570,-262.5,0.00046868,30]
[355827101,1741626638579,-151.91,0.00046868,30]
[355827103,1741626638589,-759.56,0.00046868,30]
[355827105,1741626638599,-5278.18,0.00046868,10]
[355827107,1741626638609,-500.0,0.00046873,10]
[355827109,1741626638619,-500.0,0.00046873,10]
[355827111,1741626638628,-500.0,0.00046873,7]
[355827113,1741626638638,-500.0,0.00046873,2]
[355827115,1741626638648,-500.0,0.00046873,10]
[355827117,1741626638658,-500.0,0.00046873,10]
[355827119,1741626638669,-500.0,0.00046873,10]
[355827121,1741626638679,-218.75,0.00046878,30]
[355827123,1741626638689,-182.29,0.00046878,30]
[355827125,1741626638699,-4398.48,0.00046878,10]
[355827127,1741626638709,-3665.4,0.00046878,10]
[355827129,1741626638720,-3054.5,0.00046878,10]
[355827131,1741626638730,-168.92,0.0004688,2]
[355827133,1741626638739,-168.92,0.0004688,2]
[355827135,1741626638749,-168.92,0.0004688,2]
[355827137,1741626638760,-36542.185507,0.00046888,4]
[355827139,1741626638770,-513.96774012,0.00046888,4]
[355827141,1741626638780,-164.51,0.00046889,7]
[355827143,1741626638789,-164.51,0.00046889,7]
[355827145,1741626638798,-164.51,0.00046889,7]
[355827147,1741626638806,-164.51,0.00046889,7]
[355827148,1741626638815,-164.51,0.00046889,7]
[355827149,1741626638824,-164.51,0.00046889,7]
[355827150,1741626638834,-1000.0,0.00046889,2]
[355827152,1741626638844,-14092.72,0.00046889,120]
[355827153,1741626638854,-255795.298549,0.0004689,4]
[355827154,1741626638864,-5653.64514132,0.0004689,4]
[355827156,1741626638875,-45067.65594884,0.00046898,30]
[355827158,1741626638885,-487420.6083229,0.000469,7]
[355827160,1741626638895,-607.52,0.000469,30]
[355827162,1741626638905,-416.66666667,0.000469,7]
[355827164,1741626638916,-15568.29314569,0.000469,7]
[355827165,1741626638932,-160.0,0.000469,7]
[355827166,1741626638942,-180.90971586,0.00046975,2]
[355827167,1741626638952,-1000.0,0.00046989,2]
[355827168,1741626638962,-729.52136258,0.00046994,2]
[355827169,1741626638973,-500.0,0.00046999,120]
[355827170,1741626638983,-1131.0,0.00047,90]
[355827171,1741626638993,-500.0,0.00047123,120]
[355827172,1741626639004,-180.90971586,0.00047161,2]
[355827173,1741626639015,-500.0,0.00047273,120]
[355827174,1741626639026,-151.0,0.000473,29]
[355827175,1741626639037,-729.52136258,0.0004732,2]
[355827176,1741626639048,-180.90971586,0.00047346,2]
[355827177,1741626639058,-151.0,0.000474,21]
[355827178,1741626639068,-416.66666667,0.00047403,2]
[355827179,1741626639078,-160.0,0.00047418,2]
[355827180,1741626639089,-173.79690748,0.00047422,120]
[355827181,1741626639099,-173.79,0.00047422,120]
[355827182,1741626639111,-162.21044698,0.00047422,120]
[355827183,1741626639130,-162.21044698,0.00047422,120]
[355827184,1741626639141,-162.21044698,0.00047422,120]
[355827185,1741626639151,-162.21044698,0.00047422,120]
[355827186,1741626639161,-689.54018232,0.00047422,120]
[355827187,1741626639173,-689.54018232,0.00047422,120]
[355827188,1741626639184,-689.54018232,0.00047422,120]
[355827189,1741626639194,-689.54018232,0.00047422,120]
[355827190,1741626639205,-689.54018232,0.00047422,120]
[355827191,1741626639215,-689.54018232,0.00047422,120]
[355827192,1741626639227,-689.54018232,0.00047422,120]
[355827193,1741626639239,-689.54018232,0.00047422,120]
[355827194,1741626639249,-689.54018232,0.00047422,120]
[355827195,1741626639261,-689.54018232,0.00047422,120]
[355827196,1741626639271,-689.54018232,0.00047422,120]
[355827197,1741626639282,-689.54018232,0.00047422,120]
[355827198,1741626639292,-689.54018232,0.00047422,120]
[355827199,1741626639307,-689.54018232,0.00047422,120]
[355827200,1741626639319,-689.54018232,0.00047422,120]
[355827201,1741626639330,-689.54018232,0.00047422,120]
[355827202,1741626639341,-689.54018232,0.00047422,120]
[355827203,1741626639352,-689.54018232,0.00047422,120]
[355827204,1741626639363,-689.54018232,0.00047422,120]
[355827205,1741626639374,-689.54,0.00047422,120]
[355827206,1741626639384,-1608.92709208,0.00047422,120]
[355827207,1741626639394,-1608.92709208,0.00047422,120]
[355827208,1741626639403,-1608.92709208,0.00047422,120]
[355827209,1741626639413,-1608.92709208,0.00047422,120]
[355827210,1741626639427,-1608.92709208,0.00047422,120]
[355827211,1741626639436,-1608.92709208,0.00047422,120]
[355827212,1741626639446,-1608.92709208,0.00047422,120]
[355827213,1741626639456,-1608.92709208,0.00047422,120]
[355827214,1741626639466,-1608.92709208,0.00047422,120]
[355827215,1741626639475,-1608.92709208,0.00047422,120]
[355827217,1741626639485,-1608.92709208,0.00047422,120]
[355827219,1741626639494,-1608.92709208,0.00047422,120]
[355827220,1741626639505,-1608.92709208,0.00047422,120]
[355827221,1741626639515,-1608.92709208,0.00047422,120]
[355827222,1741626639526,-1608.92709208,0.00047422,120]
[355827223,1741626639538,-1608.92709208,0.00047422,120]
[355827224,1741626639548,-1608.92709208,0.00047433,120]
[355827225,1741626639558,-14092.72,0.00047437,120]
[355827226,1741626639569,-151.0,0.000475,28]
[355827227,1741626639582,-1032.544579,0.000475,64]
[355827230,1741626639592,-2055.87096048,0.00047512,4]
[355827232,1741626639604,-167457.74711594,0.00047522,2]
[355827233,1741626639617,-500.0,0.00047547,120]
[355827235,1741626639628,-500.0,0.00047573,7]
[355827237,1741626639639,-729.52136258,0.00047653,2]
[355827238,1741626639650,-500.0,0.00047671,120]
[355827239,1741626639661,-607.52,0.000477,30]
[355827240,1741626639675,-729.52136258,0.00047768,2]
[355827241,1741626639686,-2000.0,0.000478,15]
[355827242,1741626639695,-500.0,0.00047821,120]
[355827244,1741626639706,-2000.0,0.000479,15]
[355827246,1741626639716,-2000.0,0.000479,15]
[355827248,1741626639727,-1608.92709208,0.00047922,120]
[355827249,1741626639737,-270.94,0.00047934,30]
[355827251,1741626639746,-12806.38706376,0.00047945,47]
[355827254,1741626639756,-2000.0,0.00047945,120]
[355827255,1741626639766,-2000.0,0.00047945,120]
[355827256,1741626639776,-2000.0,0.00047945,120]
[355827257,1741626639786,-2000.0,0.00047945,120]
[355827258,1741626639796,-2003.64310293,0.00047945,120]
[355827259,1741626639806,-151.0,0.00047973,2]
[355827260,1741626639816,-600.0,0.00047973,2]
[355827261,1741626639826,-14092.72,0.00047985,120]
[355827262,1741626639836,-513.96774012,0.00047992,4]
[355827263,1741626639846,-1541.90322036,0.00047992,4]
[355827264,1741626639858,-200.0,0.00048,2]
[355827266,1741626639868,-7547.17436562,0.00048,36]
[355827279,1741626640272,-7850.0,0.00048,36]
[355827280,1741626640285,-4722.95380304,0.00048,36]
[355827281,1741626640297,-5978.06138086,0.00048,36]
[355827283,1741626640326,-2073.75983844,0.00048,36]
[355827322,1741626640843,-340.365,0.00046245,10]
[355827323,1741626640891,-367.8065221,0.00046245,10]
[355827324,1741626641018,-357.50331232,0.00046245,10]
[355827325,1741626641028,-224.46267476,0.00046934,10]
[355827326,1741626641041,-515.54141486,0.00046934,10]
[355827368,1741626643242,-1842.16385533,0.00046577,28]
[355827395,1741626643469,-314.016,0.00046577,28]
[355827397,1741626643481,-455.87582098,0.00046577,28]
[355827399,1741626643490,-500.0,0.00046873,10]
[355827401,1741626643500,-325.6707448,0.00046934,10]
[355827403,1741626643511,-1065.67483442,0.00047624,11]
[355827406,1741626643522,-5935.78090252,0.00048,36]
[355827442,1741626646093,-2610.73,0.00047992,10]
[355827443,1741626646104,-9806.76260681,0.00048,36]
[355827444,1741626646115,-5000.0,0.00048,120]
[355827445,1741626646126,-3941.2283743,0.00048,120]
[355827446,1741626646137,-2000.0,0.00048,90]
[355827447,1741626646148,-290.8,0.00048,14]
[355827449,1741626646159,-487.0,0.00048,90]
[355827450,1741626646169,-1350.0,0.00048,120]
[355827451,1741626646182,-1111.64604144,0.00048,120]
[355827452,1741626646192,-45676.3237008,0.00048002,2]
[355827453,1741626646205,-158348.72982314,0.00048002,2]
[355827454,1741626646231,-1990.0,0.00048002,2]
[355827455,1741626646243,-1800.0,0.00048002,2]
[355827456,1741626646276,-2659.79,0.00048002,2]
[355827469,1741626903146,1000.0,0.00023,5]
[355827480,1741627430040,49000.0,0.00028,3]
[355827482,1741627577201,-300.0,0.000259,2]
[355827487,1741627719481,3859.054717,0.00023,2]
[355827488,1741627720864,61443.71054524,0.000145,2]
[355827489,1741627755164,-307.69377881,0.000259,2]
[355827490,1741627755186,-495.94950697,0.000299,5]
[355827491,1741627755208,-979.52087866,0.000299,2]
[355827492,1741627755254,-300.0,0.00029997,2]
[355827493,1741627755309,-500.0,0.00029998,2]
[355827494,1741627755361,-193.55458289,0.00029998,2]
[355827495,1741627755410,-500.0,0.00029998,2]
[355827496,1741627755457,-500.0,0.00029998,2]
[355827497,1741627755511,-500.0,0.00029998,2]
[355827498,1741627755558,-500.0,0.00029998,2]
[355827499,1741627755604,-500.0,0.00029998,2]
[355827500,1741627755648,-500.0,0.00029998,2]
[355827501,1741627755692,-500.0,0.00029998,2]
[355827502,1741627755741,-500.0,0.00029998,2]
[355827503,1741627755783,-500.0,0.00029998,2]
[355827504,1741627755828,-500.0,0.00029998,2]
[355827505,1741627755876,-500.0,0.00029998,2]
[355827506,1741627755919,-52.97745649,0.00029998,2]
[355827531,1741627832224,-300.0,0.00028999,2]
[355827532,1741627832234,-2627.00317772,0.00029,2]
[355827533,1741627832246,-1962.025,0.00029,2]
[355827534,1741627832257,-4973.86736223,0.00029,2]
[355827535,1741627832337,-1817.49171399,0.00029,2]
[355827536,1741627832349,-302.0,0.00029,2]
[355827537,1741627832374,-1141.76760271,0.00029,2]
[355827538,1741627832396,-4047.34656434,0.00029,2]
[355827540,1741627832408,-503.19600949,0.00029,2]
[355827542,1741627832419,-7525.30256952,0.00029,2]
[355827544,1741627832429,-479.41785667,0.000299,5]
[355827546,1741627832439,-447.02254351,0.00029998,2]
[355827549,1741627832448,-500.0,0.00029998,2]
[355827551,1741627832458,-500.0,0.00029998,2]
[355827552,1741627832468,-500.0,0.00029998,2]
[355827553,1741627832478,-500.0,0.00029998,2]
[355827554,1741627832489,-500.0,0.00029998,2]
[355827556,1741627832498,-500.0,0.00029998,2]
[355827558,1741627832507,-500.0,0.00029998,2]
[355827559,1741627832517,-500.0,0.00029998,2]
[355827560,1741627832527,-500.0,0.00029998,2]
[355827561,1741627832539,-500.0,0.00029998,2]
[355827562,1741627832549,-500.0,0.00029998,2]
[355827563,1741627832558,-500.0,0.00029998,2]
[355827564,1741627832568,-500.0,0.00029998,2]
[355827565,1741627832577,-500.0,0.00029998,2]
[355827566,1741627832586,-500.0,0.00029998,2]
[355827568,1741627832596,-500.0,0.00029998,2]
[355827570,1741627832605,-500.0,0.00029998,2]
[355827572,1741627832615,-500.0,0.00029998,2]
[355827574,1741627832624,-500.0,0.00029998,2]
[355827576,1741627832634,-500.0,0.00029998,2]
[355827578,1741627832644,-500.0,0.00029998,2]
[355827580,1741627832654,-500.0,0.00029998,2]
[355827582,1741627832664,-349.67665146,0.00029998,2]
[355827584,1741627832673,-191.08683986,0.00029998,2]
[355827626,1741627838078,-308.91316014,0.00029998,2]
[355827627,1741627838088,-500.0,0.00029998,2]
[355827628,1741627838097,-500.0,0.00029998,2]
[355827629,1741627838107,-500.0,0.00029998,2]
[355827630,1741627838116,-500.0,0.00029998,2]
[355827631,1741627838125,-500.0,0.00029998,2]
[355827632,1741627838134,-650.0,0.00029998,2]
[355827633,1741627838143,-21084.09781977,0.0003,120]
[355827634,1741627838159,-6612.68993979,0.0003,120]
[355827635,1741627838190,-3303.21224044,0.0003,120]
[355827636,1741627838200,-11533.08113198,0.0003,60]
[355827637,1741627838210,-190.0,0.0003,2]
[355827638,1741627838219,-500.0,0.0003,2]
[355827639,1741627838229,-500.0,0.0003,2]
[355827640,1741627838239,-500.0,0.0003,5]
[355827641,1741627838248,-500.0,0.0003,5]
[355827642,1741627838258,-500.0,0.0003,5]
[355827643,1741627838267,-479.41785667,0.00030797,5]
[355827644,1741627838277,-607.69377881,0.000309,2]
[355827645,1741627838289,-500.0,0.00031278,5]
[355827646,1741627838298,-500.0,0.00031278,5]
[355827647,1741627838307,-420.0,0.00031286,2]
[355827648,1741627838316,-479.41785667,0.00031693,6]
[355827649,1741627838326,-561.97657971,0.0003207,2]
[355827650,1741627838335,-479.41785667,0.0003259,6]
[355827651,1741627838345,-479.41785667,0.00033486,6]
[355827652,1741627838355,-587.0,0.00033755,2]
[355827653,1741627838365,-479.41785667,0.00034383,6]
[355827654,1741627838375,-479.41785667,0.00035279,7]
[355827655,1741627838386,-491.46700254,0.00035479,2]
[355827656,1741627838396,-1000.0,0.00035479,2]
[355827657,1741627838405,-1000.0,0.00035479,5]
[355827658,1741627838415,-1000.0,0.00035479,5]
[355827659,1741627838425,-1000.0,0.00035479,5]
[355827660,1741627838435,-634.14780903,0.00035616,2]
[355827662,1741627838446,-404.489404,0.0003589,2]
[355827664,1741627838456,-607.69377881,0.000359,2]
[355827665,1741627838467,-187.04137829,0.00035965,15]
[355827668,1741627838477,-227.53290479,0.00035965,15]
[355827669,1741627838487,-1716.35519368,0.00036,30]
[355827670,1741627838496,-479.41785667,0.00036176,7]
[355827671,1741627838506,-316.28406767,0.000362,98]
[355827672,1741627838516,-316.28406764,0.000362,98]
[355827673,1741627838526,-823.0,0.00036417,2]
[355827674,1741627838539,-1000.0,0.00036757,5]
[355827675,1741627838549,-500.0,0.00036757,5]
[355827677,1741627838559,-479.41785667,0.00037072,7]
[355827679,1741627838569,-479.41785667,0.00037969,8]
[355827681,1741627838579,-479.41785667,0.00038866,8]
[355827682,1741627838589,-786.0,0.0003929,5]
[355827684,1741627838600,-479.41785667,0.00039762,8]
[355827686,1741627838609,-316.28406764,0.00039874,119]
[355827687,1741627838619,-1812.9243376,0.0004,15]
[355827688,1741627838629,-68304.28076504,0.0004,30]
[355827689,1741627838639,-500.0,0.0004,5]
[355827691,1741627838648,-500.0,0.0004,5]
[355827692,1741627838659,-501.64102138,0.0004,5]
[355827693,1741627838670,-500.0,0.0004,5]
[355827694,1741627838680,-500.0,0.0004,5]
[355827695,1741627838690,-500.0,0.0004,5]
[355827696,1741627838700,-500.0,0.0004,5]
[355827697,1741627838709,-500.0,0.0004,5]
[355827698,1741627838720,-500.0,0.0004,5]
[355827699,1741627838729,-500.0,0.0004,5]
[355827700,1741627838739,-500.0,0.0004,5]
[355827701,1741627838749,-500.0,0.0004,5]
[355827702,1741627838758,-500.0,0.0004,5]
[355827703,1741627838768,-506.82325464,0.0004,3]
[355827704,1741627838777,-500.0,0.0004,5]
[355827705,1741627838789,-500.0,0.0004,5]
[355827706,1741627838798,-611.98482621,0.0004,5]
[355827707,1741627838807,-500.0,0.0004,5]
[355827708,1741627838817,-495.86793105,0.0004,5]
[355827709,1741627838826,-500.0,0.0004,5]
[355827710,1741627838835,-500.0,0.0004,5]
[355827711,1741627838845,-500.0,0.0004,5]
[355827712,1741627838855,-500.0,0.0004,5]
[355827713,1741627838865,-616.5543764,0.0004,5]
[355827714,1741627838875,-500.0,0.0004,5]
[355827715,1741627838886,-500.0,0.0004,5]
[355827716,1741627838897,-506.45227993,0.0004,5]
[355827717,1741627838907,-500.0,0.0004,5]
[355827718,1741627838917,-500.0,0.0004,5]
[355827719,1741627838926,-500.0,0.0004,5]
[355827720,1741627838937,-500.0,0.0004,5]
[355827721,1741627838947,-500.0,0.0004,5]
[355827722,1741627838956,-296.74510296,0.00040489,2]
[355827723,1741627838966,-479.41785667,0.00040659,8]
[355827724,1741627838977,-24404.01514449,0.00041,2]
[355827725,1741627838987,-160.77563916,0.00041096,2]
[355827726,1741627838996,-546.77,0.000411,30]
[355827727,1741627839006,-404.489404,0.00041211,2]
[355827728,1741627839016,-225.271372,0.00041256,2]
[355827729,1741627839027,-479.41785667,0.00041555,9]
[355827730,1741627839040,-1812.9243376,0.000424,15]
[355827731,1741627839050,-479.41785667,0.00042452,9]
[355827732,1741627839060,-164.873,0.00043007,66]
[355827733,1741627839070,-479.41785667,0.00043348,9]
[355827734,1741627839080,-4052.71999855,0.00044,60]
[355827735,1741627839090,-214.8740204,0.00044187,2]
[355827736,1741627839100,-546.77,0.000442,30]
[355827737,1741627839110,-479.41785667,0.00044245,10]
[355827738,1741627839120,-1964.00136574,0.000448,19]
[355827739,1741627839130,-316.28406764,0.00044862,120]
[355827740,1741627839139,-200.0,0.00045,2]
[355827741,1741627839149,-479.41785667,0.00045141,10]
[355827742,1741627839159,-152.96615591,0.00045461,20]
[355827743,1741627839169,-692.25378725,0.00045479,10]
[355827744,1741627839179,-504.95218548,0.00045479,10]
[355827745,1741627839190,-1000.0,0.00045479,10]
[355827746,1741627839200,-1000.0,0.00045479,10]
[355827747,1741627839210,-1000.0,0.00045479,10]
[355827748,1741627839219,-508.34743869,0.00045479,10]
[355827749,1741627839229,-1000.0,0.00045479,10]
[355827750,1741627839241,-1000.0,0.00045479,10]
[355827751,1741627839251,-1001.83030487,0.00045479,10]
[355827752,1741627839262,-1000.0,0.00045479,7]
[355827753,1741627839272,-1000.0,0.00045479,10]
[355827754,1741627839419,-1000.0,0.00045479,10]
[355827755,1741627839430,-1000.0,0.00045479,10]
[355827756,1741627839440,-506.1706964,0.00045479,10]
[355827757,1741627839450,-1000.0,0.00045479,10]
[355827758,1741627839460,-1000.0,0.00045479,10]
[355827759,1741627839471,-535.87369613,0.00045479,10]
[355827760,1741627839482,-1000.0,0.00045479,10]
[355827761,1741627839492,-1000.0,0.00045479,10]
[355827762,1741627839502,-569.30622082,0.00045479,10]
[355827763,1741627839512,-1000.0,0.00045479,10]
[355827764,1741627839522,-1500.0,0.00045498,2]
[355827765,1741627839532,-1500.0,0.00045498,10]
[355827766,1741627839545,-369.55824663,0.00045498,10]
[355827767,1741627839554,-1500.0,0.00045498,10]
[355827768,1741627839565,-1000.0,0.000457,57]
[355827769,1741627839574,-479.41785667,0.00046038,10]
[355827770,1741627839583,-1000.0,0.000462,57]
[355827771,1741627839593,-546.77,0.000462,30]
[355827772,1741627839603,-300.0,0.000464,3]
[355827773,1741627839613,-505.10632043,0.000464,10]
[355827774,1741627839622,-500.0,0.000464,10]
[355827775,1741627839632,-500.0,0.000464,10]
[355827776,1741627839641,-611.61085525,0.000464,10]
[355827777,1741627839651,-507.14866131,0.000464,10]
[355827778,1741627839661,-500.0,0.000464,10]
[355827779,1741627839671,-500.0,0.000464,10]
[355827780,1741627839680,-500.0,0.000464,10]
[355827781,1741627839690,-404.489404,0.00046532,2]
[355827782,1741627839700,-500.0,0.00046575,120]